[Event "5th Baskent University Open 2022"]
[Site "Ankara"]
[Date "2022.07.07"]
[Round "9.4"]
[White "Ozsoy, Alimert"]
[Black "Caputcuoglu, Zeki Berke"]
[Result "1-0"]
[ECO "B72"]
[WhiteElo "2263"]
[BlackElo "2203"]
[Annotator "TA"]
[PlyCount "63"]
[EventDate "2022.07.02"]
[EventType "swiss"]
[EventCountry "TUR"]
[SourceTitle "playchess.com"]
[Source "ChessBase"]
[SourceQuality "1"]
[TimeControl "5400+30"]

{[%evp 11,63,50,59,60,50,57,61,24,14,8,10,15,22,-34,-23,-10,0,-68,-31,-78,0,-21,45,-13,0,0,0,0,65,53,36,81,217,119,118,118,126,78,514,530,503,533,973,691,679,687,668,667,989,941,1342,1374,29994,29995]} 1. e4 {[%emt 0:05:00]} c5 {[%emt 0:01:00]} 2. Nf3 {[%emt 0:00:30]} d6 {[%emt 0:00:30]} 3. d4 {[%emt 0:00:30]} cxd4 {[%emt 0:00:30]} 4. Nxd4 {[%emt 0:00:00]} Nf6 {[%emt 0:00:30]} 5. Nc3 {[%emt 0:00:00]} g6 {[%emt 0:00:00]} 6. Be3 {[%emt 0:00:00]} a6 {[%emt 0:00:00]} 7. f3 {[%emt 0:00:00] B72: Sicilian Dragon: 6 Be3, lines with h3+Bc4 and sidelines.} h5 {[%emt 0:00:30]} 8. Qd2 {[%emt 0:01:30]} Nbd7 {[%emt 0:01:30]} 9. O-O-O {[%emt 0:00:30] White is slightly better.} b5 {[%emt 0:00:00] [#]} 10. a4 $146 {[%emt 0:04:30]} ({Predecessor:} 10. Kb1 Bb7 11. h4 Bg7 12. g3 Qc7 13. a3 Rb8 14. Nb3 Ne5 15. Qf2 Nc4 16. Bxc4 bxc4 {½-½ (47) Easwaralingam,A (2069)-Yilmazyerli,M (2466) Terme Catez 2022}) 10... bxa4 {[%emt 0:06:00]} 11. Nxa4 {[%emt 0:17:30]} Bb7 {[%emt 0:15:30] Inhibits Nc6.} 12. Nb3 {[%emt 0:12:30]} (12. Kb1 $11) 12... Bc6 $1 $15 {[%emt 0:12:30]} 13. Nc3 {[%emt 0:02:30]} Bg7 {[%emt 0:05:30]} 14. Nd5 {[%emt 0:07:30]} (14. Nd4 $11 Qc7 15. Nxc6 Qxc6 16. Nd5) 14... a5 {[%emt 0:03:30] Threatens to win with ...Bxd5.} (14... Bxd5 $5 15. exd5 Qc7 $11) 15. Nd4 {[%emt 0:02:30]} Bb7 {[%emt 0:00:30]} (15... Bxd5 $17 16. exd5 a4) 16. Bb5 {[%emt 0:02:30]} Rc8 {[%emt 0:00:30]} ({Black should try} 16... a4 $11) 17. Bg5 {[%emt 0:05:30]} ({Better is} 17. Nf4 $14 O-O {[#]} 18. Nxg6 $1 fxg6 19. Ne6) 17... Nxd5 {[%emt 0:10:30]} 18. exd5 {[%emt 0:00:30] Hoping for Rhe1.} O-O {[%emt 0:03:30]} 19. Rhe1 {[%emt 0:10:30]} (19. Nc6 Bxc6 20. dxc6 Ne5 $17) 19... Nc5 {[%emt 0:03:30]} (19... Ne5 $11) 20. Kb1 $1 $36 {[%emt 0:04:30][%mdl 2048] White is pushing. White is more active.} ({Wrong is} 20. Rxe7 $2 Bxd4 21. Kb1 (21. Qxd4 $2 Nb3+ 22. Kb1 Nxd4 $19) 21... Bh8 22. Rxf7 (22. Rxb7 $2 f6 $19) 22... Qb6 23. Rxf8+ Rxf8 $19) 20... Qb6 {[%emt 0:00:30]} 21. c4 {[%emt 0:01:30]} Ra8 {[%emt 0:10:30]} (21... Rfe8 $16 {might work better.}) 22. Bh6 {[%emt 0:09:06]} ({Much less strong is} 22. Rxe7 $6 a4 $16) ({White must play} 22. Bxe7 $18 Rfc8 23. Qf4) 22... Bf6 $16 {[%emt 0:04:52][%cal Oa5a4]} 23. Bxf8 {[%emt 0:00:39]} Kxf8 {[%emt 0:00:30]} 24. g4 {[%emt 0:02:29][%cal Bg2g4,Bg4g5][%mdl 32]} h4 {[%emt 0:02:33][%mdl 8192]} (24... a4 $16 {is a better chance.}) 25. g5 $18 {[%emt 0:00:22]} Bg7 {[%emt 0:01:02]} 26. Qf4 {[%emt 0:01:36] Black must now prevent Ne6+.} Bc8 {[%emt 0:08:00]} 27. Ne6+ {[%emt 0:02:56]} Bxe6 {[%emt 0:02:08]} 28. dxe6 {[%emt 0:00:09]} Nxe6 {[%emt 0:00:49]} 29. Rxe6 {[%emt 0:00:30]} Qf2 {[%emt 0:00:30][%csl Gg7][%cal Rf2b2]} 30. Rd2 {[%emt 0:00:16] Intending Rxe7 and mate.} Qg1+ {[%emt 0:02:59]} 31. Ka2 {[%emt 0:00:12][%cal Oe6e7] Threatening mate with Rxe7!} a4 {[%emt 0:00:16] [#]} 32. Rxe7 $3 {[%emt 0:00:11][%mdl 512] Weighted Error Value: White=0.29 (precise) /Black=0.64} 1-0

[Event "5th Baskent University Open 2022"]
[Site "Ankara"]
[Date "2022.07.07"]
[Round "9.5"]
[White "Huseyinoglu, Alihan"]
[Black "Bicer, Atakan Mert"]
[Result "1-0"]
[ECO "E36"]
[WhiteElo "2213"]
[BlackElo "2368"]
[Annotator "RC"]
[PlyCount "141"]
[EventDate "2022.07.02"]
[EventType "swiss"]
[EventCountry "TUR"]
[SourceTitle "playchess.com"]
[Source "ChessBase"]
[SourceQuality "1"]
[TimeControl "5400+30"]

1. Nf3 {[%emt 0:03:00]} Nf6 {[%emt 0:01:00]} 2. c4 {[%emt 0:01:30]} e6 {[%emt 0:02:30]} 3. Nc3 {[%emt 0:04:30]} Bb4 {[%emt 0:00:30]} 4. Qc2 {[%emt 0:02:30]} d5 {[%emt 0:10:30]} 5. a3 {[%emt 0:15:30]} Be7 {[%emt 0:12:30]} 6. d4 {[%emt 0:02:30]} O-O {[%emt 0:06:30]} 7. Bf4 {[%emt 0:04:30]} c5 {[%emt 0:17:30]} 8. dxc5 {[%emt 0:04:30]} Bxc5 {[%emt 0:02:30]} 9. e3 {[%emt 0:02:30]} Nc6 {[%emt 0:07:30]} 10. Rd1 {[%emt 0:05:30]} Qa5 {[%emt 0:08:30]} 11. Bd3 {[%emt 0:17:30]} dxc4 {[%emt 0:13:43]} 12. Bxc4 {[%emt 0:00:30]} Be7 {[%emt 0:00:40]} 13. h3 {[%emt 0:10:30]} e5 {[%emt 0:04:29]} 14. Bg3 {[%emt 0:01:30]} e4 {[%emt 0:01:04]} 15. Nd2 {[%emt 0:01:30]} Bf5 {[%emt 0:00:20]} 16. O-O {[%emt 0:05:05]} Ne5 {[%emt 0:01:20]} 17. b4 {[%emt 0:01:56]} Qc7 {[%emt 0:01:14]} 18. Nb5 {[%emt 0:06:15]} Qb8 {[%emt 0:00:35]} 19. Qc3 {[%emt 0:05:20]} Nfd7 {[%emt 0:00:11]} 20. Nxe4 {[%emt 0:00:00]} Bxe4 {[%emt 0:02:27]} 21. Rxd7 {[%emt 0:00:17]} Bf6 {[%emt 0:00:00]} 22. Bxe5 {[%emt 0:02:15]} Bxe5 {[%emt 0:00:37]} 23. Qb3 {[%emt 0:01:25]} a6 {[%emt 0:01:16]} 24. Nc3 {[%emt 0:00:41]} Bg6 {[%emt 0:01:02]} 25. Rfd1 {[%emt 0:00:43]} Kh8 {[%emt 0:01:34]} 26. Nd5 {[%emt 0:00:52]} Bf5 {[%emt 0:01:56]} 27. Nb6 {[%emt 0:00:17]} Bxd7 {[%emt 0:00:17]} 28. Nxd7 {[%emt 0:00:58]} Qc7 {[%emt 0:00:04]} 29. Nxf8 {[%emt 0:00:25]} Rxf8 {[%emt 0:00:04]} 30. Qd3 {[%emt 0:00:22]} g6 {[%emt 0:00:55]} 31. Qe4 {[%emt 0:00:34]} b5 {[%emt 0:00:47]} 32. Bd5 {[%emt 0:00:27]} Bb2 {[%emt 0:01:23]} 33. Qd3 {[%emt 0:00:29]} Kg7 {[%emt 0:00:28]} 34. Qb3 {[%emt 0:00:48]} Bf6 {[%emt 0:00:27]} 35. g3 {[%emt 0:00:09]} h5 {[%emt 0:00:50]} 36. h4 {[%emt 0:00:08]} Rd8 {[%emt 0:00:08]} 37. Kg2 {[%emt 0:00:43]} Rd7 {[%emt 0:00:25]} 38. Rd3 {[%emt 0:00:00]} Qc1 {[%emt 0:00:25]} 39. e4 {[%emt 0:01:09]} Rc7 {[%emt 0:00:37]} 40. a4 {[%emt 0:00:39]} Qa1 {[%emt 0:01:04]} 41. axb5 {[%emt 0:00:08]} axb5 {[%emt 0:00:00]} 42. Rd1 {[%emt 0:00:40]} Qc3 {[%emt 0:00:42]} 43. Qxc3 {[%emt 0:00:41]} Bxc3 {[%emt 0:00:26]} 44. Rc1 {[%emt 0:00:46]} Be5 {[%emt 0:00:06]} 45. Rc5 {[%emt 0:00:08]} Rxc5 {[%emt 0:01:43]} 46. bxc5 {[%emt 0:00:30]} f6 {[%emt 0:00:00]} 47. f4 {[%emt 0:00:11]} Bc7 {[%emt 0:00:00]} 48. Kf3 {[%emt 0:00:47]} Kf8 {[%emt 0:00:11]} 49. Bc6 {[%emt 0:00:19]} b4 {[%emt 0:00:30]} 50. Bd5 {[%emt 0:00:30]} Bb8 {[%emt 0:00:30]} 51. g4 {[%emt 0:00:30]} hxg4+ {[%emt 0:00:30]} 52. Kxg4 {[%emt 0:00:30]} Kg7 {[%emt 0:00:30]} 53. f5 {[%emt 0:00:09]} Be5 {[%emt 0:00:37]} 54. Bb3 {[%emt 0:00:38]} Kh6 {[%emt 0:00:54]} 55. fxg6 {[%emt 0:00:33]} Kxg6 {[%emt 0:00:30]} 56. h5+ {[%emt 0:00:00]} Kh6 {[%emt 0:00:41]} 57. c6 {[%emt 0:00:00]} Bd6 {[%emt 0:00:11]} 58. Bd1 {[%emt 0:00:13]} Bc7 {[%emt 0:00:49]} 59. Kf5 {[%emt 0:00:11]} Be5 {[%emt 0:00:00]} 60. Ke6 {[%emt 0:02:31]} Kg5 {[%emt 0:00:41]} 61. Bc2 {[%emt 0:00:27]} Kxh5 {[%emt 0:00:55]} 62. Kd7 {[%emt 0:00:04]} Kg4 {[%emt 0:00:25]} 63. c7 {[%emt 0:00:30]} Bxc7 {[%emt 0:00:30]} 64. Kxc7 {[%emt 0:00:00]} Kf4 {[%emt 0:00:00]} 65. Kd6 {[%emt 0:01:15]} b3 {[%emt 0:00:59]} 66. Bb1 {[%emt 0:00:30]} Ke3 {[%emt 0:00:00]} 67. Ke6 {[%emt 0:00:29]} Kd2 {[%emt 0:00:17]} 68. Kxf6 {[%emt 0:00:13]} Kc1 {[%emt 0:00:16]} 69. Bd3 {[%emt 0:00:32]} Kd2 {[%emt 0:00:07]} 70. Bc4 {[%emt 0:00:13]} b2 {[%emt 0:00:30]} 71. Ba2 {[%emt 0:00:00]} 1-0

[Event "5th Baskent University Open 2022"]
[Site "Ankara"]
[Date "2022.07.07"]
[Round "9.7"]
[White "Sevgi, Volkan"]
[Black "Unat, Can Haktan"]
[Result "1/2-1/2"]
[ECO "B45"]
[WhiteElo "2305"]
[BlackElo "2242"]
[Annotator "TA"]
[PlyCount "46"]
[EventDate "2022.07.02"]
[EventType "swiss"]
[EventCountry "TUR"]
[SourceTitle "playchess.com"]
[Source "ChessBase"]
[SourceQuality "1"]
[TimeControl "5400+30"]

{[%evp 23,46,33,34,0,7,0,1,14,6,0,-4,-31,-33,-50,-56,-60,-43,-58,-33,-62,-14,-22,-12,-16,0]} 1. e4 {[%emt 0:01:00] RR} c5 {[%emt 0:02:00]} 2. Nc3 {[%emt 0:00:30]} e6 {[%emt 0:00:30]} 3. Nge2 {[%emt 0:00:30][%cal Bg1e2,Be2d4,Bd4b5,Bb5c3][%mdl 32]} Nc6 {[%emt 0:02:30]} 4. d4 {[%emt 0:00:30]} cxd4 {[%emt 0:02:30]} 5. Nxd4 {[%emt 0:00:00]} Nf6 {[%emt 0:00:30]} 6. Ndb5 {[%emt 0:00:00]} Bb4 {[%emt 0:01:30]} 7. a3 {[%emt 0:00:30]} Bxc3+ {[%emt 0:00:30]} 8. Nxc3 {[%emt 0:00:00]} d5 {[%emt 0:00:00]} 9. exd5 {[%emt 0:01:00]} exd5 {[%emt 0:00:00]} 10. Bd3 {[%emt 0:00:00]} O-O {[%emt 0:00:00]} 11. O-O {[%emt 0:00:00]} Bg4 {[%emt 0:00:00]} 12. f3 {[%emt 0:01:30]} Bh5 $1 {[%emt 0:00:00][%mdl 4] now scores much better than the old 12...Be6.} 13. Ne2 {[%emt 0:06:30] B45: Sicilian Four Knights.} Re8 {[%emt 0:08:00]} 14. Kh1 {[%emt 0:05:30] [#]} Bg6 $146 {[%emt 0:02:30]} ({Predecessor:} 14... Qb6 15. Nf4 Bg6 16. Bxg6 hxg6 17. Nxd5 Nxd5 18. Qxd5 Nd4 19. Bg5 Nxc2 20. Rac1 Nd4 {1-0 (41) Hutois,M (2186)-Shirazi,K (2367) Sautron 2014 EXT 2015 [RR]}) 15. Bg5 {[%emt 0:01:30]} Qd6 {[%emt 0:03:30]} 16. Bxg6 {[%emt 0:10:30]} hxg6 {[%emt 0:00:30]} 17. Qd2 {[%emt 0:17:30]} Qe5 {[%emt 0:05:30][%csl LRb2,LRe2]} 18. Nc3 {[%emt 0:01:30]} d4 {[%emt 0:02:30]} 19. Bxf6 {[%emt 0:00:30]} gxf6 {[%emt 0:04:30]} ({But not} 19... dxc3 20. Bxe5 cxd2 21. Bc3 $11) 20. Ne4 {[%emt 0:00:00]} f5 {[%emt 0:03:30]} 21. Nf2 {[%emt 0:00:00]} Qe3 {[%emt 0:02:30]} (21... Qb5 $15 {was preferrable.}) 22. Rad1 $11 {[%emt 0:00:30]} Kg7 {[%emt 0:00:30]} 23. Nd3 {[%emt 0:00:30]} b5 {[%emt 0:15:30] Weighted Error Value: White=0.08 (flawless) /Black=0.11 (very precise)} 1/2-1/2

[Event "5th Baskent University Open 2022"]
[Site "Ankara"]
[Date "2022.07.07"]
[Round "9.8"]
[White "Dedebas, Emre Emin"]
[Black "Bekiragaoglu, Umut"]
[Result "1-0"]
[ECO "E05"]
[WhiteElo "2321"]
[BlackElo "2067"]
[Annotator "TA"]
[PlyCount "63"]
[EventDate "2022.07.02"]
[EventType "swiss"]
[EventCountry "TUR"]
[SourceTitle "playchess.com"]
[Source "ChessBase"]
[SourceQuality "1"]
[TimeControl "5400+30"]

{[%evp 18,63,20,4,93,75,77,106,77,91,181,163,343,279,350,347,321,334,333,259,247,253,261,255,348,334,338,338,406,397,637,632,672,654,642,593,972,632,1168,620,617,617,604,593,573,568,612,545]} 1. d4 {[%emt 0:07:00]} d5 {[%emt 0:01:00]} 2. c4 {[%emt 0:00:30]} e6 {[%emt 0:00:30]} 3. Nf3 {[%emt 0:00:00]} Nf6 {[%emt 0:00:00]} 4. g3 {[%emt 0:00:00]} Be7 {[%emt 0:00:00]} 5. Bg2 {[%emt 0:00:00]} O-O {[%emt 0:01:30]} 6. O-O {[%emt 0:00:00]} dxc4 {[%emt 0:00:30]} 7. Qc2 {[%emt 0:00:30]} a6 {[%emt 0:00:30]} 8. a4 {[%emt 0:00:30]} Bd7 {[%emt 0:01:30]} 9. Rd1 {[%emt 0:00:00]} Bc6 {[%emt 0:01:30]} 10. Nc3 {[%emt 0:00:00] 10.Bg5 is the hot move.} Nbd7 {[%emt 0:03:30] E05: Open Catalan: 5 Nf3 Be7.} (10... Bxf3 $11 {remains equal.} 11. Bxf3 Nc6) 11. e4 $1 $16 {[%emt 0:00:30][%cal Be2e4,Be4e5][%mdl 32] d5 is the strong threat.} b5 {[%emt 0:01:30] [#]} 12. d5 $1 {[%emt 0:00:30]} exd5 {[%emt 0:00:30] [#] White is better.} 13. e5 {[%emt 0:00:30][%mdl 64] Deflection. White is more active.} Ne4 {[%emt 0:09:30]} (13... Ng4 $16) 14. Nxd5 $18 {[%emt 0:01:30]} Nec5 {[%emt 0:17:30]} (14... Bxd5 {was necessary.} 15. Rxd5 c6 16. Rxd7 Qxd7) 15. Nxe7+ {[%emt 0:09:30][%mdl 64] Remove Defender} Qxe7 {[%emt 0:00:30]} 16. Ng5 {[%emt 0:00:30][%csl Gg5][%cal Rc2h7]} Nd3 {[%emt 0:03:30]} 17. Bxc6 {[%emt 0:02:30] [#]} Rad8 $146 {[%emt 0:00:30]} ({Predecessor:} 17... N7xe5 18. Bxa8 Rxa8 19. Bf4 {1-0 (19) Ribli,Z (2590)-Dobias,R (2205) Austria 1995}) 18. Rxd3 {[%emt 0:17:30]} (18. axb5 N7xe5 19. Be4 (19. Rxa6 h6 $11) 19... h6 20. bxa6 hxg5 $18) 18... cxd3 {[%emt 0:01:30]} 19. Qxd3 $40 {[%emt 0:00:00][%csl Gg5][%cal Rd3h7][%mdl 128] White is out for blood.} g6 {[%emt 0:00:30]} 20. Bxd7 {[%emt 0:14:00]} (20. axb5 $6 Nxe5 21. Qf1 Nxc6 $18) 20... Rxd7 {[%emt 0:00:30]} 21. Qe2 {[%emt 0:01:30]} f6 {[%emt 0:04:30]} 22. Nf3 {[%emt 0:00:30]} ({Not} 22. axb5 fxg5 23. bxa6 c5 $18) 22... fxe5 {[%emt 0:00:30]} 23. Bh6 {[%emt 0:02:30]} Rf5 $2 {[%emt 0:06:30]} (23... Rb8 24. axb5 (24. Qxe5 Qxe5 25. Nxe5 Rd6 $18) (24. Nxe5 Re8 $18) 24... axb5) 24. axb5 {[%emt 0:01:30] White is clearly winning.} axb5 {[%emt 0:00:30]} 25. Ra8+ {[%emt 0:05:30]} Rd8 {[%emt 0:00:30] [#]} 26. Qd3 $1 {[%emt 0:03:30] White wants to mate with Qd5+.} Re8 {[%emt 0:01:30] [#]} (26... Rff8 27. Bxf8) 27. Qxb5 $1 {[%emt 0:01:30]} Kf7 {[%emt 0:00:30]} (27... Rff8 28. Bxf8) 28. Qd5+ {[%emt 0:00:30]} Qe6 {[%emt 0:01:30]} 29. Ng5+ {[%emt 0:00:30]} Rxg5 {[%emt 0:00:00]} 30. Qxe6+ {[%emt 0:00:30]} Rxe6 {[%emt 0:00:00]} 31. Bxg5 {[%emt 0:00:30]} Rb6 {[%emt 0:00:30]} 32. Rc8 {[%emt 0:00:00] White took control after the opening.  Weighted Error Value: White=0.39/Black=0.69} 1-0

[Event "5th Baskent University Open 2022"]
[Site "Ankara"]
[Date "2022.07.07"]
[Round "9.9"]
[White "Makaraci, Tunahan"]
[Black "Ozkan, Taha"]
[Result "0-1"]
[ECO "B22"]
[WhiteElo "2130"]
[BlackElo "2357"]
[Annotator "TA"]
[PlyCount "60"]
[EventDate "2022.07.02"]
[EventType "swiss"]
[EventCountry "TUR"]
[SourceTitle "playchess.com"]
[Source "ChessBase"]
[SourceQuality "1"]
[TimeControl "5400+30"]

{[%evp 26,60,8,7,82,12,10,23,9,-19,-14,0,-19,-27,0,-23,-15,-33,-41,-93,-93,-91,-102,-159,-146,-152,-156,-290,-304,-531,-524,-625,-525,-520,-510,-494,-483]} 1. e4 {[%emt 0:06:00]} c5 {[%emt 0:01:00]} 2. Nf3 {[%emt 0:00:30]} e6 {[%emt 0:00:00]} 3. c3 {[%emt 0:00:00]} d5 {[%emt 0:00:00]} 4. exd5 {[%emt 0:00:00]} Qxd5 {[%emt 0:00:30]} 5. d4 {[%emt 0:00:00]} Nc6 {[%emt 0:00:00]} 6. a3 {[%emt 0:00:00]} Nf6 {[%emt 0:00:00]} 7. Be3 {[%emt 0:00:00]} cxd4 {[%emt 0:00:30]} 8. cxd4 {[%emt 0:00:00]} Be7 {[%emt 0:00:30]} 9. Nc3 {[%emt 0:00:30]} Qd8 {[%emt 0:00:30]} 10. Bd3 {[%emt 0:00:00]} O-O {[%emt 0:00:00]} 11. O-O {[%emt 0:00:00]} b6 {[%emt 0:00:00]} 12. Qe2 {[%emt 0:00:30]} Bb7 {[%emt 0:00:30]} 13. Rad1 {[%emt 0:00:30]} Rc8 {[%emt 0:01:30]} 14. Rfe1 {[%emt 0:06:30]} Qc7 {[%emt 0:02:30] [#] B22: Sicilian: 2 c3.} (14... Na5 $11) 15. Ng5 $146 {[%emt 0:05:30]} (15. Bg5 $16) ({Predecessor:} 15. Bg5 Rfd8 16. Bb1 Na5 17. Ne5 Qd6 18. Bxf6 Bxf6 19. Bxh7+ Kf8 20. Qh5 Rc7 21. Be4 Ba6 22. Bb1 {1-0 (36) Artemiev,V (2704)-Aronian,L (2782) chess24.com INT 2021}) 15... h6 $11 {[%emt 0:05:30]} 16. Nge4 {[%emt 0:00:00]} Rfd8 {[%emt 0:00:30] White has an edge.} 17. Bb1 {[%emt 0:02:00]} Na5 {[%emt 0:04:30][%cal Bc6a5,Ba5c4,Bc4e5][%mdl 32]} 18. Nxf6+ {[%emt 0:02:30]} Bxf6 {[%emt 0:00:30]} 19. Qg4 {[%emt 0:00:30]} Kf8 {[%emt 0:02:30]} (19... Nc4 $5 {[%cal Rc4b2]}) 20. Ne4 {[%emt 0:09:30]} Bxe4 {[%emt 0:02:30]} 21. Qxe4 {[%emt 0:00:30]} Nc4 {[%emt 0:05:30]} 22. Bc1 {[%emt 0:02:30]} (22. Qh7 $15) 22... Qc6 $17 {[%emt 0:00:30]} 23. Qh7 {[%emt 0:00:30][%cal Od4d5]} Rxd4 {[%emt 0:02:30] Active counter play!} 24. Be4 {[%emt 0:07:30]} ({White should play} 24. b3 Rxd1 25. Rxd1) 24... Qd7 {[%emt 0:08:30]} 25. Rxd4 {[%emt 0:06:30]} Bxd4 {[%emt 0:00:30]} 26. b3 {[%emt 0:00:30] [#]} (26. Bf3 $17 Nxb2 27. Bxb2 Bxb2 28. Rd1) 26... Ne5 $1 $19 {[%emt 0:05:30] And now ...Ng4 would win.} 27. a4 $2 {[%emt 0:36:23] [#]} (27. Bxh6 {might work better.} gxh6 28. Qxh6+ Ke8 29. Qh8+ Ke7 30. Qh4+ f6 31. h3) 27... Bxf2+ $1 {[%emt 0:03:30][%mdl 512] Black is clearly winning.} 28. Kf1 {[%emt 0:00:21]} (28. Kxf2 Rxc1) 28... Bxe1 {[%emt 0:00:30]} 29. Ba3+ {[%emt 0:00:04] [#]} Rc5 $1 {[%emt 0:00:30][%cal Od7d2] ( -> ...Qd2!)} 30. Kxe1 {[%emt 0:00:04]} Qd4 {[%emt 0:00:30] White did not feel at home in the position after the opening.  Weighted Error Value: White=0.47/Black=0.15 (very precise)} 0-1

[Event "5th Baskent University Open 2022"]
[Site "Ankara"]
[Date "2022.07.07"]
[Round "9.10"]
[White "Tarhan, Adar"]
[Black "Akbas, Umut Ata"]
[Result "0-1"]
[ECO "B81"]
[WhiteElo "2201"]
[BlackElo "2298"]
[Annotator "TA"]
[PlyCount "74"]
[EventDate "2022.07.02"]
[EventType "swiss"]
[EventCountry "TUR"]
[SourceTitle "playchess.com"]
[Source "ChessBase"]
[SourceQuality "1"]
[TimeControl "5400+30"]

{[%evp 12,73,8,16,14,20,23,34,22,20,35,37,32,22,27,5,34,0,-14,-31,0,-45,-45,-52,44,-11,47,59,62,65,62,56,224,182,201,227,578,555,575,544,491,503,468,530,458,454,688,677,664,477,460,455,631,462,704,-29990,-29991,-29995,-29996,-29997,-29998,-29998,-29999,-29999]} 1. e4 {[%emt 0:06:00]} c5 {[%emt 0:01:00]} 2. Nf3 {[%emt 0:00:30]} d6 {[%emt 0:00:30]} 3. d4 {[%emt 0:00:30]} cxd4 {[%emt 0:00:30]} 4. Nxd4 {[%emt 0:00:00]} Nf6 {[%emt 0:00:00]} 5. Nc3 {[%emt 0:00:00]} a6 {[%emt 0:00:00]} 6. h3 {[%emt 0:00:00]} e6 {[%emt 0:00:00]} 7. g4 {[%emt 0:00:00][%cal Bg2g4,Bg4g5][%mdl 32]} Be7 {[%emt 0:00:00] B81: Sicilian Scheveningen: Keres Attack.} 8. g5 {[%emt 0:00:30]} Nfd7 {[%emt 0:00:00]} 9. Be3 {[%emt 0:00:30]} b5 {[%emt 0:00:00] White is slightly better.} (9... Bxg5 10. Nxe6 $1 fxe6 11. Qh5+ g6 12. Qxg5 $16) 10. a3 {[%emt 0:03:30]} Bb7 {[%emt 0:00:30]} (10... Bxg5 11. Nxe6 $1 {[%mdl 512]} fxe6 12. Qh5+ g6 13. Qxg5 $16) 11. h4 {[%emt 0:00:30]} Nc6 {[%emt 0:00:30]} 12. f4 {[%emt 0:00:30]} Rc8 {[%emt 0:01:30]} 13. Qd2 {[%emt 0:11:30]} Nxd4 {[%emt 0:04:30]} 14. Qxd4 {[%emt 0:01:30]} (14. Bxd4 $14 Qa5 15. Bg2 (15. Bxg7 Rg8 $15)) 14... O-O $11 {[%emt 0:01:30][%cal Od6d5]} 15. O-O-O {[%emt 0:00:30]} Qc7 {[%emt 0:16:30] [#]} (15... Nc5 $5 {[%cal Rb7e4]}) 16. h5 $146 {[%emt 0:10:30] Threatens to win with h6.} ({Predecessor:} 16. Kb1 Nc5 17. Rh2 Rfd8 18. Re1 e5 19. Qd1 Nxe4 20. Nd5 Bxd5 21. Qxd5 Qc6 22. Qxc6 Rxc6 {½-½ (82) Ganguly,S (2660)-Docx,S (2416) Caleta 2016}) 16... Nc5 $1 {[%emt 0:02:30][%cal Oc5e4] Strongly threatening ...Nxe4!} 17. Bg2 {[%emt 0:02:30]} Na4 {[%emt 0:03:30]} (17... a5 $15 18. Kb1 Na4) 18. Bd2 {[%emt 0:03:30]} (18. h6 $14 e5 19. Qd3 (19. fxe5 $2 dxe5 20. Qd7 Nxc3 $19) 19... Nxc3 20. hxg7 Kxg7 21. bxc3 Qxc3 22. Kb1) 18... Rfd8 {[%emt 0:10:30]} ({Black should play} 18... e5 $11 19. Qd3 Nxc3 20. Bxc3 Qc4) 19. Kb1 $40 {[%emt 0:02:30][%mdl 128] White has some attack.} e5 {[%emt 0:19:30]} 20. Qd3 {[%emt 0:04:30]} Nc5 {[%emt 0:06:30]} 21. Qe2 {[%emt 0:00:30]} a5 $2 {[%emt 0:04:30]} ({Better is} 21... exf4 $14 22. Bxf4 Ne6) 22. Nxb5 $18 {[%emt 0:05:30]} Qb6 {[%emt 0:00:30]} 23. g6 {[%emt 0:02:30] aiming for gxf7+.} Nxe4 $2 {[%emt 0:07:30]} (23... h6 {is a better chance.} 24. gxf7+ Kxf7 25. fxe5 dxe5) 24. Bxe4 {[%emt 0:01:30]} Bxe4 {[%emt 0:00:30]} 25. Qxe4 {[%emt 0:00:00] And now gxf7+ would win.} Qxb5 {[%emt 0:00:30]} 26. gxf7+ {[%emt 0:06:00]} Kxf7 {[%emt 0:01:09]} 27. Qxh7 {[%emt 0:01:30] Black must now prevent Qg6+.} Bf6 {[%emt 0:00:07]} 28. Qg6+ {[%emt 0:02:30]} Kf8 {[%emt 0:00:14]} (28... Ke7 $142 29. h6 e4) 29. h6 {[%emt 0:01:30]} e4 {[%emt 0:00:37][%csl Gf6][%cal Rb5b2]} 30. hxg7+ {[%emt 0:02:30]} (30. Bc1 Rxc2 31. hxg7+ (31. Kxc2 Rc8+ 32. Kd2 Qd3+ 33. Ke1 Rxc1 $11) 31... Bxg7 32. Kxc2 Rc8+ 33. Kd2 Qd3+ 34. Ke1 Rxc1 35. Qf5+ (35. Rxc1 Qe3+ 36. Kd1 Qf3+ 37. Kd2 Qd3+ 38. Ke1 Qe3+ 39. Kd1 Qf3+ 40. Kd2 Qd3+ 41. Ke1 $11) 35... Kg8 36. Rxc1 Qe3+ 37. Kf1 (37. Kd1 Qf3+ 38. Kd2 Qg2+ 39. Ke3 Qf3+ 40. Kd2 Qg2+ 41. Ke3 Qf3+ 42. Kd2 $11) 37... Qf3+ 38. Kg1 Qg3+ 39. Kf1 Qf3+ 40. Ke1 (40. Kg1 Qg3+ 41. Kf1 Qf3+ $11) 40... Qxh1+ 41. Ke2 (41. Kd2 Qg2+ 42. Ke1 Qh1+ 43. Ke2 Qxc1 $11) 41... Qxc1 $11) 30... Bxg7 {[%emt 0:00:23][%csl Gg7][%cal Rb5b2]} 31. c3 {[%emt 0:02:30] Threatening mate with f5.} ({Inferior is} 31. Bc1 Rxc2 32. Kxc2 Rc8+ 33. Kd2 Qd3+ 34. Ke1 Rxc1 35. Qf5+ (35. Rxc1 Qe3+ 36. Kd1 Qf3+ 37. Kd2 Qd3+ 38. Ke1 Qe3+ 39. Kd1 Qf3+ 40. Kd2 Qd3+ 41. Ke1 $11) 35... Kg8 36. Rxc1 Qe3+ 37. Kf1 (37. Kd1 Qf3+ 38. Kd2 Qg2+ 39. Ke3 Qf3+ 40. Kd2 Qg2+ 41. Ke3 Qf3+ 42. Kd2 $11) 37... Qf3+ 38. Kg1 Qg3+ 39. Kf1 Qf3+ 40. Kg1 Qg3+ 41. Kf1 Qf3+ $11) 31... Rc7 {[%emt 0:09:04]} 32. Rh5 {[%emt 0:03:30]} Qd3+ {[%emt 0:00:22]} (32... Qe8 $142 33. Qh7 e3 34. Rf5+ (34. Rxa5 exd2 35. Qd3 Rc5 $15) 34... Rf7) 33. Kc1 $4 {[%emt 0:00:30][%mdl 8192] [#]} (33. Ka1 $18 Rf7 34. f5) 33... Bxc3 $1 {[%emt 0:01:26][%csl Gd3][%cal Rc3d2][%mdl 512] Black mates.} 34. Rf5+ {[%emt 0:03:30]} (34. Qg8+ Kxg8) 34... Bf6+ $1 {[%emt 0:00:30]} 35. Bc3 {[%emt 0:00:30]} Rxc3+ {[%emt 0:00:00]} 36. bxc3 {[%emt 0:00:30]} Qxc3+ {[%emt 0:00:23]} 37. Kb1 {[%emt 0:00:30]} Qb2# {[%emt 0:00:00] Never resign too early!  Weighted Error Value: White=0.44/Black=0.50} 0-1